bitfinex-derivatives/quotes_ETHF0:USTF0_20210407
["timestamp","ask_amount","ask_price","bid_price","bid_amount"]
[1617802946793,66.8781,2001.7,2000.5,2.0]
[1617802947293,66.8781,2001.7,2000.6,6.17]
[1617802947495,66.8781,2001.7,2001.6,2.90695]
[1617802947692,67.8738,2001.7,2001.6,2.90695]
[1617802947995,66.8781,2001.7,2001.6,9.18695]
[1617802948993,67.8793,2001.7,2001.6,9.18695]
[1617802950401,66.8781,2001.7,2001.6,9.18695]
[1617802950798,2.2803,2001.7,2001.6,9.18695]
[1617802951000,2.90695,2001.8,2001.6,9.18695]
[1617802955713,70.4679,2002.2,2001.6,9.18695]
[1617802956006,70.4679,2002.2,2001.6,11.76505]
[1617802957107,70.4679,2002.2,2001.8,6.04]
[1617802957343,0.9884,2003.1,2001.7,6.14]
[1617802957509,0.9884,2003.1,2002.9,2.90695]
[1617802957708,0.9884,2003.1,2002.9,5.51825]
[1617802957910,0.9884,2003.1,2002.9,1.1527]
[1617802958128,0.9884,2003.1,2003.0,5.2391]
[1617802958409,0.9884,2003.1,2001.8,2.0]
[1617802958638,60.6922,2002.5,2001.8,2.0]
[1617802959028,60.6922,2002.5,2001.6,2.5781]
[1617802959225,60.6922,2002.5,2001.9,6.16]
[1617802959509,63.59915,2002.5,2002.4,2.90695]
[1617802960011,63.59915,2002.5,2002.4,8.95695]
[1617802961612,2.90695,2002.5,2002.4,8.95695]
[1617802962818,76.4235,2003.0,2002.4,8.95695]
[1617802963618,76.4235,2003.0,2002.8,2.90695]
[1617802963817,76.4235,2003.0,2002.9,6.05]
[1617802965620,79.33045,2003.0,2002.9,6.05]
[1617802967526,2.90695,2003.0,2002.9,6.05]
[1617802967795,1.90695,2003.0,2002.9,8.7052]
[1617802967923,1.90695,2003.0,2002.9,10.7052]
[1617802968124,2.571,2003.9,2002.9,8.7052]
[1617802968962,2.571,2003.9,2002.9,10.7052]
[1617802969224,3.5689,2004.9,2003.2,70.6907]
[1617802969425,2.571,2004.9,2003.2,70.6907]
[1617802969624,2.571,2004.9,2003.3,6.02]
[1617802969826,4.571,2004.9,2003.3,6.02]
[1617802970029,2.571,2004.9,2004.3,6.12]
[1617802970227,2.571,2004.9,2004.3,2.8624]
[1617802970639,2.571,2004.9,2004.4,6.07]
[1617802971630,2.90695,2004.5,2004.4,6.07]
[1617802972132,2.90695,2004.5,2004.1,6.14]
[1617802972531,2.90695,2004.5,2004.4,6.05]
[1617802972731,2.90695,2004.5,2004.1,6.12]
[1617802972930,2.90695,2004.5,2004.4,6.13]
[1617802973330,2.90695,2004.5,2004.1,6.23]
[1617802973630,2.90695,2004.2,2004.0,2.90695]
[1617802974030,2.90695,2004.2,2004.1,6.06]
[1617802974230,33.90215,2004.2,2004.1,6.06]
[1617802974431,3.90215,2004.2,2004.1,5.0875]
[1617802974730,3.90215,2004.2,2002.8,57.0485]
[1617802974731,87.6574,2004.1,2002.9,3.24]
[1617802974933,2.0,2004.0,2002.8,57.0485]
[1617802975234,30.0,2003.9,2002.9,6.16]
[1617802975632,30.0,2003.9,2003.1,2.90695]
[1617802975930,30.0,2003.9,2003.2,6.0]
[1617802976130,57.6574,2004.1,2003.2,6.0]
[1617802976830,57.6574,2004.1,2003.2,9.0817]
[1617802978029,87.6574,2004.1,2003.2,9.0817]
[1617802978229,57.6574,2004.1,2003.2,9.0817]
[1617802978933,57.6574,2004.1,2003.2,6.0]
[1617802979132,87.6574,2004.1,2003.2,6.0]
[1617802979431,57.6574,2004.1,2002.9,6.07]
[1617802979732,30.0,2004.0,2003.4,2.90695]
[1617802980133,59.8015,2004.1,2003.5,6.26]
[1617802980833,89.8015,2004.1,2003.5,6.26]
[1617802981760,2.90695,2003.6,2003.5,6.26]
[1617802983038,3.90795,2003.6,2003.5,6.26]
[1617802983637,2.90695,2003.6,2003.5,6.26]
[1617802983837,0.9952,2004.2,2003.5,6.26]
[1617802984137,56.5826,2004.6,2003.6,2.0]
[1617802984539,56.5826,2004.6,2003.7,6.12]
[1617802985641,56.5826,2004.6,2003.6,6.11]
[1617802985838,56.5826,2004.6,2004.2,2.90695]
[1617802986139,56.5826,2004.6,2004.3,6.01]
[1617802986539,2.571,2004.9,2004.3,6.01]
[1617802986941,2.571,2004.9,2004.3,8.01]
[1617802987139,2.571,2004.9,2004.3,6.01]
[1617802987749,2.571,2004.9,2004.8,2.90695]
[1617802987957,2.571,2004.9,2004.8,4.92705]
[1617802988145,2.571,2004.9,2004.8,10.91705]
[1617802988947,0.9875,2005.4,2004.8,10.91705]
[1617802989742,2.90695,2004.9,2004.8,10.91705]
[1617802990845,81.35355,2004.9,2004.8,8.0101]
[1617802991045,81.35355,2004.9,2004.8,5.99]
[1617802991346,81.35355,2004.9,2004.1,6.2]
[1617802991745,81.35355,2004.9,2004.8,6.21]
[1617802992063,81.35355,2004.9,2004.4,2.90695]
[1617802992254,81.35355,2004.9,2004.8,6.12]
[1617802992675,81.35355,2004.9,2004.5,6.06]
[1617802992950,81.35355,2004.9,2004.8,6.25]
[1617802993349,81.35355,2004.9,2004.5,6.27]
[1617802993549,81.35355,2004.9,2004.8,6.25]
[1617802993970,81.35355,2004.9,2004.5,2.5136]
[1617802993971,81.35355,2004.9,2004.6,6.1]
[1617802994177,81.35355,2004.9,2004.8,6.02]
[1617802994650,81.35355,2004.9,2004.6,6.24]
[1617802994880,2.90695,2004.9,2004.8,6.01]
[1617802995051,2.90695,2004.9,2004.8,68.3753]
[1617802995478,2.90695,2004.9,2004.8,74.5953]
[1617802995653,2.90695,2004.9,2004.8,6.22]
[1617802995855,81.47185,2004.9,2004.8,9.12695]
[1617802996052,81.47185,2004.9,2004.8,2.90695]
[1617802996253,81.47185,2004.9,2004.8,8.90695]
[1617802996854,81.47185,2004.9,2004.8,6.0]
[1617802997353,2.90695,2004.9,2004.1,6.13]
[1617802997557,70.7203,2004.4,2003.2,76.0846]
[1617802997755,73.482,2004.4,2004.2,5.25]
[1617802998056,73.482,2004.4,2003.7,2.90695]
[1617802998557,103.482,2004.4,2004.3,6.25]
[1617802998757,73.482,2004.4,2003.7,2.90695]
[1617802999157,73.482,2004.4,2004.3,6.27]
[1617802999357,73.482,2004.4,2003.8,6.26]
[1617802999558,73.482,2004.4,2004.0,6.27]
[1617802999758,76.38895,2004.4,2004.3,6.22]
[1617802999959,76.38895,2004.4,2003.8,6.23]
[1617803000161,2.90695,2004.4,2004.1,6.18]
[1617803000362,58.4579,2005.0,2004.3,6.14]
[1617803000561,0.9875,2005.4,2004.1,8.5478]
[1617803000562,0.9875,2005.4,2004.1,2.3678]
[1617803000762,0.9875,2005.4,2004.6,77.0671]
[1617803001061,0.9875,2005.4,2004.7,5.12]
[1617803001762,69.884,2004.9,2004.7,5.12]
[1617803001963,2.90695,2004.8,2004.7,5.12]
[1617803002162,6.75235,2004.8,2004.3,2.90695]
[1617803002362,36.75235,2004.8,2004.4,0.64]
[1617803002568,36.75235,2004.8,2004.7,2.69]
[1617803002765,6.75235,2004.8,2004.3,6.14]
[1617803002964,58.7216,2004.4,2004.3,6.14]
[1617803003163,58.7216,2004.4,2003.9,2.63]
[1617803003365,58.7216,2004.4,2004.3,6.24]
[1617803003663,6.75235,2004.8,2002.1,13.0927]
[1617803003664,3.91545,2004.8,2004.2,2.9288]
[1617803003863,3.91545,2004.8,2004.7,2.90695]
[1617803004162,3.91545,2004.8,2004.7,2.008]
[1617803004364,3.91545,2004.8,2004.7,7.508]
[1617803005163,3.91545,2004.8,2004.7,5.5]
[1617803005367,33.91545,2004.8,2004.7,5.5]
[1617803005578,33.91545,2004.8,2004.3,72.4511]
[1617803005769,36.73765,2004.8,2004.4,6.25]
[1617803005966,3.8307,2004.8,2004.7,6.21]
[1617803006265,3.8307,2004.8,2004.3,72.4511]
[1617803006465,3.8307,2004.8,2004.7,6.25]
[1617803006866,1.0085,2004.8,2004.3,72.4511]
[1617803007066,1.0085,2004.8,2004.4,6.03]
[1617803007273,31.0085,2004.8,2004.4,6.03]
[1617803007466,30.0,2004.6,2004.4,6.03]
[1617803007682,1.0085,2004.8,2004.4,6.03]
[1617803007973,2.90695,2004.5,2004.4,6.03]
[1617803009868,1.0085,2004.8,2004.4,6.03]
[1617803010069,1.0085,2004.8,2004.4,8.4776]
[1617803011171,67.5881,2004.6,2004.4,6.03]
[1617803011372,69.5417,2004.6,2004.4,6.03]
[1617803011572,69.5417,2004.6,2004.3,6.24]
[1617803012071,1.9536,2004.6,2004.5,6.2]
[1617803012272,1.9536,2004.6,2004.3,6.01]
[1617803012572,1.9536,2004.6,2004.5,6.23]
[1617803012772,1.9536,2004.6,2004.3,6.08]
[1617803013974,1.9536,2004.6,2004.5,2.90695]
[1617803014173,1.0085,2004.8,2004.5,2.90695]
[1617803014373,1.0085,2004.8,2004.5,6.12]
[1617803014774,1.0085,2004.8,2004.0,66.5742]
[1617803014973,1.0085,2004.8,2004.2,6.1]
[1617803015272,1.0085,2004.8,2004.6,6.21]
[1617803015472,1.0085,2004.8,2004.0,66.5742]
[1617803015673,33.3137,2004.8,2004.7,6.07]
[1617803015978,33.3137,2004.8,2002.4,2.0]
[1617803015979,36.22065,2004.8,2004.2,8.94695]
[1617803016208,82.1346,2004.2,2002.8,57.3753]
[1617803016397,85.9025,2004.2,2002.8,57.3753]
[1617803016576,117.9025,2004.2,2002.8,57.3753]
[1617803016904,117.9025,2004.2,2002.9,6.0]
[1617803017474,115.9025,2004.2,2002.9,6.0]
[1617803017975,115.9025,2004.2,2003.7,2.90695]
[1617803018376,117.9025,2004.2,2003.8,6.12]
[1617803018575,85.9025,2004.2,2003.8,6.12]
[1617803018776,115.9025,2004.2,2003.8,6.12]
[1617803019678,115.9025,2004.2,2003.8,5.3948]
[1617803019879,2.90695,2003.9,2003.8,5.3948]
[1617803020386,32.90695,2003.9,2003.8,5.3948]
[1617803020583,2.90695,2003.9,2003.8,5.3948]
[1617803021614,2.90695,2003.9,2003.8,4.4075]
[1617803022112,2.90695,2003.9,2003.8,3.6518]
[1617803022288,2.90695,2003.9,2003.8,2.8583]
[1617803022488,2.90695,2003.9,2003.8,2.1163]
[1617803026392,1.0065,2004.2,2003.8,1.3658]
[1617803027196,1.0085,2004.8,2003.8,1.3658]
[1617803027494,1.0085,2004.8,2004.5,81.6426]
[1617803027895,1.0085,2004.8,2004.6,6.29]
[1617803028410,1.0085,2004.8,2004.6,4.8464]
[1617803030011,2.90695,2004.7,2004.6,4.8464]
[1617803031899,35.79285,2004.7,2004.6,2.9245]
[1617803032101,65.1887,2004.6,2003.8,2.90695]
[1617803032315,30.0,2004.5,2003.8,2.90695]
[1617803032803,32.0,2004.5,2003.8,2.90695]
[1617803033172,32.0,2004.5,2003.9,6.17]
[1617803034202,3.91945,2004.0,2003.9,6.17]
[1617803034607,3.91945,2004.0,2003.9,4.4811]
[1617803034904,92.86655,2004.0,2003.1,79.3884]
[1617803035102,62.86655,2004.0,2003.1,79.3884]
[1617803035306,62.86655,2004.0,2003.5,6.0]
[1617803035507,62.86655,2004.0,2003.2,4.04]
[1617803036005,59.9596,2004.0,2003.5,2.90695]
[1617803036405,59.9596,2004.0,2003.6,6.15]
[1617803038112,3.7435,2004.0,2003.9,2.90695]
[1617803038309,1.0125,2004.0,2003.9,2.90695]
[1617803038509,1.0125,2004.0,2003.9,63.66875]
[1617803039011,1.0125,2004.0,2003.9,62.93085]
[1617803039412,101.5763,2004.7,2003.9,62.93085]
[1617803040112,2.90695,2004.0,2003.9,62.93085]
[1617803040513,3.91145,2004.0,2003.9,62.40345]
[1617803041718,3.91145,2004.0,2003.9,3.77165]
[1617803042065,3.91145,2004.0,2003.9,3.03315]
[1617803042418,3.91145,2004.0,2003.9,1.47685]
[1617803042616,3.91145,2004.0,2003.9,0.80615]
[1617803044037,3.91145,2004.0,2003.9,3.395]
[1617803045720,6.32365,2004.0,2003.9,3.395]
[1617803046722,6.32365,2004.0,2003.9,1.186]
[1617803046922,3.91145,2004.0,2003.9,1.186]
[1617803047127,3.91145,2004.0,2003.9,7.376]
[1617803047635,3.91145,2004.0,2003.9,6.6378]
[1617803048924,3.91145,2004.0,2003.9,1.4154]
[1617803049124,2.90695,2004.0,2003.9,1.4154]
[1617803051325,2.90695,2004.0,2003.9,67.6731]
[1617803054730,2.90695,2004.0,2003.9,1.4154]
[1617803063543,2.90695,2004.0,2003.8,62.6291]
[1617803063744,2.90695,2004.0,2003.9,6.09]
[1617803065447,2.90695,2004.0,2003.9,9.186]
[1617803070759,3.89975,2004.0,2003.9,11.186]
[1617803071158,0.9928,2004.0,2003.9,11.186]
[1617803071459,1.0085,2004.8,2004.0,79.6263]
[1617803071659,1.0085,2004.8,2004.1,2.0]
[1617803071859,1.0085,2004.8,2004.2,6.26]
[1617803072159,1.0085,2004.8,2004.6,2.90695]
[1617803072359,1.0085,2004.8,2004.6,5.46375]
[1617803072560,1.0085,2004.8,2004.7,6.04]
[1617803073266,1.0085,2004.8,2004.2,6.23]
[1617803073662,1.0085,2004.8,2004.7,6.18]
[1617803073863,1.0085,2004.8,2004.3,6.02]
[1617803074366,1.0085,2004.8,2004.7,6.18]
[1617803074563,1.0085,2004.8,2004.6,3.41]
[1617803074964,1.0085,2004.8,2004.7,5.34]
[1617803075165,1.0085,2004.8,2004.6,6.16]
[1617803075566,1.0085,2004.8,2004.7,6.01]
[1617803075869,1.0085,2004.8,2004.0,81.6263]
[1617803076067,1.0085,2004.8,2004.7,6.06]
[1617803076366,3.91545,2004.8,2004.3,2.90695]
[1617803076567,3.91545,2004.8,2004.3,8.99695]
[1617803076767,3.91545,2004.8,2004.7,0.23]
[1617803077167,3.91545,2004.8,2004.3,2.90695]
[1617803077368,3.91545,2004.8,2004.5,6.02]
[1617803077567,3.91545,2004.8,2004.7,6.0]
[1617803077968,3.91545,2004.8,2004.6,6.24]
[1617803078169,3.91545,2004.8,2004.7,5.3719]
[1617803078569,3.91545,2004.8,2004.4,6.04]
[1617803078776,3.91545,2004.8,2004.7,6.19]
[1617803079068,3.91545,2004.8,2004.3,7.00165]
[1617803079288,3.91545,2004.8,2004.4,6.21]
[1617803079473,3.91545,2004.8,2004.7,6.1]
[1617803079673,3.91545,2004.8,2004.3,5.00165]
[1617803079883,3.91545,2004.8,2004.4,6.07]
[1617803080175,3.91545,2004.8,2004.7,6.1]
[1617803080370,3.91545,2004.8,2004.3,5.00165]
[1617803080371,3.91545,2004.8,2004.4,6.08]
[1617803081172,2.90695,2004.8,2004.4,6.08]
[1617803081378,0.9875,2005.4,2004.4,6.08]
[1617803082073,0.9875,2005.4,2005.3,78.0567]
[1617803082274,3.89445,2005.4,2005.3,81.1345]
[1617803082474,3.89445,2005.4,2005.3,87.1245]
[1617803083783,3.89445,2005.4,2005.3,85.6418]
[1617803083985,3.89445,2005.4,2005.3,84.2255]
[1617803084180,3.89445,2005.4,2005.3,82.6324]
[1617803084681,3.89445,2005.4,2005.3,82.5165]
[1617803085380,3.89445,2005.4,2005.3,9.0678]
[1617803086281,3.89445,2005.4,2005.3,5.99]
[1617803086682,3.89445,2005.4,2004.9,6.09]
[1617803086882,67.561,2005.3,2004.9,6.09]
[1617803087182,67.561,2005.3,2004.6,6.21]
[1617803087382,67.561,2005.3,2005.0,6.2]
[1617803087582,67.561,2005.3,2004.5,68.3798]
[1617803087782,30.0,2005.2,2004.6,6.26]
[1617803088182,67.561,2005.3,2004.6,6.26]
[1617803088383,2.90695,2004.7,2004.6,6.26]
[1617803088584,3.91905,2004.7,2004.6,6.26]
[1617803091990,2.90695,2004.7,2004.6,6.26]
[1617803092891,0.9926,2004.8,2004.6,6.26]
[1617803093092,0.9926,2004.8,2004.6,8.3862]
[1617803093492,0.9875,2005.4,2004.8,64.1495]
[1617803094094,0.9875,2005.4,2004.9,6.18]
[1617803094296,2.90695,2005.0,2004.9,9.08695]
[1617803098601,1.0069,2006.1,2004.9,9.08695]
[1617803098802,1.02190913,2006.7,2005.0,75.4208]
[1617803099002,0.01470913,2006.7,2004.9,11.08695]
[1617803099305,0.02941827,2006.8,2005.8,75.3983]
[1617803099306,0.01470844,2006.8,2005.8,75.3983]
[1617803099505,5.098,2006.9,2005.9,6.27]
[1617803100104,35.098,2006.9,2005.9,6.27]
[1617803100302,2.90695,2006.0,2005.9,6.27]
[1617803100501,3.91335,2006.0,2005.9,6.27]
[1617803100701,2.90695,2006.0,2005.9,6.27]
[1617803101304,2.90695,2006.0,2005.4,6.27]
[1617803101505,58.4502,2005.9,2005.4,6.27]
[1617803101707,61.344,2005.9,2005.2,64.9763]
[1617803101908,91.344,2005.9,2005.2,63.4988]
[1617803102115,32.8938,2005.9,2005.3,6.11]
[1617803102311,2.90695,2005.4,2005.3,6.11]
[1617803102510,5.59815,2005.4,2005.3,6.11]
[1617803102809,63.4241,2005.3,2005.0,0.06]
[1617803103319,2.90695,2005.4,2005.1,75.5245]
[1617803103706,2.90695,2005.4,2005.2,6.26]
[1617803103907,3.91295,2005.4,2005.2,6.26]
[1617803104105,2.90695,2005.4,2005.2,6.26]
[1617803104407,2.90695,2005.4,2005.2,9.16695]
[1617803105718,3.89445,2005.4,2005.2,9.16695]
[1617803106006,2.90695,2005.4,2005.2,9.16695]
[1617803106405,71.644,2005.3,2005.2,9.16695]
[1617803108736,72.6355,2005.3,2005.2,9.16695]
[1617803108939,73.6348,2005.3,2005.2,9.16695]
[1617803109711,31.9908,2005.3,2005.2,9.16695]
[1617803110035,31.9908,2005.3,2005.2,6.26]
[1617803110036,2.9841,2005.3,2005.2,6.26]
[1617803110210,2.9841,2005.3,2003.9,8.05]
[1617803110412,32.9841,2005.3,2004.9,2.90695]
[1617803110612,32.9841,2005.3,2005.2,6.14]
[1617803110819,32.9841,2005.3,2005.0,6.08]
[1617803111113,66.4291,2005.2,2004.9,2.90695]
[1617803111313,98.4291,2005.2,2003.8,58.9011]
[1617803111513,96.4291,2005.2,2005.1,6.2]
[1617803111820,96.4291,2005.2,2005.0,6.25]
[1617803112113,96.4291,2005.2,2005.1,6.22]
[1617803112518,99.33605,2005.2,2004.5,2.90695]
[1617803112719,99.33605,2005.2,2005.1,6.26]
[1617803113115,101.33605,2005.2,2004.6,6.14]
[1617803113315,101.33605,2005.2,2005.1,5.99]
[1617803113719,101.33605,2005.2,2004.7,6.24]
[1617803113920,101.33605,2005.2,2003.8,58.9011]
[1617803114317,101.33605,2005.2,2003.9,6.22]
[1617803114519,98.4291,2005.2,2003.9,6.22]
[1617803115221,75.9433,2004.3,2003.9,6.22]
[1617803115422,79.6673,2004.3,2003.8,6.12]
[1617803115823,79.6673,2004.3,2004.0,6.08]
[1617803116026,79.6673,2004.3,2003.8,6.25]
[1617803116422,79.6673,2004.3,2003.7,2.90695]
[1617803116423,79.6673,2004.3,2004.1,6.22]
[1617803116721,79.6673,2004.3,2003.8,6.11]
[1617803116921,33.724,2004.3,2004.2,6.01]
[1617803117127,3.724,2004.3,2004.2,6.01]
[1617803117346,3.724,2004.3,2003.9,65.6711]
[1617803117521,3.724,2004.3,2004.2,6.02]
[1617803118023,0.9948,2004.3,2004.0,3.61]
[1617803118223,0.9948,2004.3,2004.2,6.16]
[1617803118463,2.90695,2004.3,2004.2,2.90695]
[1617803118936,2.90695,2004.3,2004.2,69.05835]
[1617803119168,2.90695,2004.3,2004.2,3.43695]
[1617803119323,2.90695,2004.3,2004.2,1.59495]
[1617803119623,4.91725,2004.3,2004.2,0.53]
[1617803120023,4.91725,2004.3,2003.7,6.25]
[1617803120331,7.98695,2004.3,2004.2,6.27]
[1617803120624,4.0822,2004.3,2003.8,2.90695]
[1617803120823,4.0822,2004.3,2003.9,6.1]
[1617803121024,4.0822,2004.3,2004.2,6.0]
[1617803121224,4.0822,2004.3,2003.6,65.6411]
[1617803121424,4.0822,2004.3,2004.0,6.11]
[1617803121626,5.0803,2004.3,2004.2,6.24]
[1617803121825,35.0803,2004.3,2004.2,6.24]
[1617803122025,35.0803,2004.3,2004.1,5.64]
[1617803122230,35.0803,2004.3,2004.2,0.14]
[1617803122426,37.98725,2004.3,2004.2,0.14]
[1617803122627,37.98725,2004.3,2004.0,6.09]
[1617803122827,7.98725,2004.3,2004.2,6.04]
[1617803123226,7.98725,2004.3,2004.1,6.12]
[1617803123427,7.98725,2004.3,2004.2,6.03]
[1617803123829,7.98725,2004.3,2003.6,65.6411]
[1617803124030,7.98725,2004.3,2004.2,6.11]
[1617803124432,7.98725,2004.3,2003.9,56.0572]
[1617803124632,7.98725,2004.3,2004.2,6.24]
[1617803125037,7.98725,2004.3,2004.0,1.38]
[1617803125234,7.98725,2004.3,2004.2,6.04]
[1617803125637,7.98725,2004.3,2004.0,6.05]
[1617803126043,7.98725,2004.3,2004.2,5.0258]
[1617803126235,7.98725,2004.3,2004.0,6.02]
[1617803126638,7.98725,2004.3,2004.2,6.06]
[1617803126936,7.98725,2004.3,2004.0,6.09]
[1617803127136,7.98725,2004.3,2004.2,6.25]
[1617803127436,37.98725,2004.3,2004.0,6.01]
[1617803127746,7.98725,2004.3,2004.2,6.21]
[1617803128039,7.98725,2004.3,2004.0,6.1]
[1617803128237,101.17735,2004.3,2004.0,6.1]
[1617803128537,101.17735,2004.3,2004.2,6.14]
[1617803128737,101.17735,2004.3,2003.3,67.9826]
[1617803129238,2.0,2004.2,2003.3,67.9826]
[1617803129442,30.0,2004.1,2003.4,6.21]
[1617803130041,30.0,2004.1,2003.4,4.8075]
[1617803130446,71.17735,2004.3,2003.4,3.8995]
[1617803130447,2.90695,2003.5,2003.4,3.8995]
[1617803130742,5.10795,2003.5,2003.4,3.8995]
[1617803131644,6.09705,2003.5,2003.4,3.8995]
[1617803133168,3.89605,2003.5,2003.4,3.8995]
[1617803133951,3.89605,2003.5,2003.4,3.1523]
[1617803134156,36.81175,2003.5,2003.4,2.1723]
[1617803134353,36.81175,2003.5,2002.9,2.90695]
[1617803134556,64.66815,2003.0,2002.9,1.89215]
[1617803134760,67.61865,2003.0,2002.9,0.92215]
[1617803134947,67.61865,2003.0,2002.9,6.03]
[1617803135348,67.61865,2003.0,2002.3,6.03]
[1617803135549,5.85745,2003.0,2002.9,6.22]
[1617803135849,6.85785,2003.0,2002.6,75.6534]
[1617803136150,6.85785,2003.0,2002.9,6.13]
[1617803136348,5.85745,2003.0,2002.9,6.13]
[1617803136547,5.85745,2003.0,2002.6,78.56035]
[1617803136747,2.90695,2003.0,2002.7,6.05]
[1617803136949,2.90695,2003.0,2002.9,6.07]
[1617803137149,2.90695,2003.0,2002.6,78.56035]
[1617803137351,3.91185,2003.0,2002.7,6.01]
[1617803137549,3.91185,2003.0,2002.9,6.24]
[1617803137849,3.91185,2003.0,2002.7,6.25]
[1617803138049,5.85075,2003.0,2002.7,6.25]
[1617803138250,5.85075,2003.0,2002.9,6.22]
[1617803138457,5.85075,2003.0,2002.6,78.56035]
[1617803138666,5.85075,2003.0,2002.7,6.12]
[1617803138850,5.85075,2003.0,2002.9,6.23]
[1617803139149,3.91185,2003.0,2002.7,6.28]
[1617803139350,3.91185,2003.0,2002.9,6.22]
[1617803139750,3.91185,2003.0,2002.7,6.09]
[1617803139974,66.46505,2003.0,2002.9,6.26]
[1617803140352,66.46505,2003.0,2002.7,6.1]
[1617803140551,63.5581,2003.0,2002.9,6.01]
[1617803140959,63.5581,2003.0,2002.7,6.09]
[1617803141165,63.5581,2003.0,2002.9,6.18]
[1617803141379,93.5581,2003.0,2002.9,3.7211]
[1617803141553,93.5581,2003.0,2002.7,6.03]
[1617803141852,93.5581,2003.0,2002.9,2.3188]
[1617803142051,93.5581,2003.0,2002.2,6.19]
[1617803142252,93.5581,2003.0,2002.8,6.21]
[1617803142455,2.90695,2002.2,2002.1,69.69295]
[1617803142652,5.10375,2002.2,2002.1,2.90695]
[1617803143252,5.10375,2002.2,2002.1,9.03695]
[1617803143753,6.11305,2002.2,2002.1,9.03695]
[1617803144253,3.91625,2002.2,2002.1,9.03695]
[1617803145161,4.92905,2002.2,2002.1,9.03695]
[1617803146659,4.92905,2002.2,2002.1,6.13]
[1617803147056,4.92905,2002.2,2001.7,6.09]
[1617803147358,34.92905,2002.2,2002.1,6.23]
[1617803147758,4.92905,2002.2,2001.8,6.26]
[1617803147958,68.5457,2002.1,2001.1,5.14572261]
[1617803148157,98.5457,2002.1,2001.1,5.14572261]
[1617803148361,100.5457,2002.1,2001.9,5.99]
[1617803148563,30.0,2002.1,2001.9,5.99]
[1617803148760,30.0,2002.1,2001.1,3.52]
[1617803149061,57.378,2001.6,2001.0,2.90695]
[1617803149260,60.0069,2001.6,2001.0,2.90695]
[1617803149462,60.0069,2001.6,2001.1,6.25]
[1617803150264,61.0117,2001.6,2001.1,6.25]
[1617803150666,2.90695,2001.2,2001.1,6.25]
[1617803152267,67.0273,2001.1,2000.2,6.29]
[1617803152466,69.8772,2001.1,2000.1,70.2968]
[1617803152667,69.8772,2001.1,2000.4,2.90695]
[1617803152867,2.8499,2001.1,2000.5,6.1]
[1617803153267,69.2228,2000.5,1999.8,3.2]
[1617803153468,71.9483,2000.5,2000.4,5.76]
[1617803153824,71.9483,2000.5,2000.3,6.18]
[1617803154007,71.9483,2000.5,2000.4,6.21]
[1617803154368,71.9483,2000.5,2000.0,6.14]
[1617803154571,71.9483,2000.5,2000.1,2.90695]
[1617803154772,71.9483,2000.5,2000.4,5.73]
[1617803155074,71.9483,2000.5,2000.2,0.25]
[1617803155469,71.9483,2000.5,2000.4,6.26]
[1617803155670,71.9483,2000.5,2000.2,6.2]
[1617803155970,71.9483,2000.5,2000.4,6.03]
[1617803156170,2.7255,2000.5,2000.4,6.03]
[1617803156382,2.7255,2000.5,2000.3,6.16]
[1617803156572,77.0209,2000.3,2000.1,2.90695]
[1617803157074,77.0209,2000.3,2000.2,4.71]
[1617803157473,2.90695,2000.4,2000.2,4.71]
[1617803158373,1.90695,2000.4,2000.3,2.0]
[1617803158573,59.442,2001.4,2000.7,2.90695]
[1617803158977,59.442,2001.4,2000.8,6.06]
[1617803159176,1.0048,2001.6,2000.8,6.06]
[1617803160677,2.90695,2000.9,2000.8,6.06]
[1617803161679,2.90695,2000.9,1999.7,73.6313]
[1617803161680,61.2954,2000.8,1999.7,73.6313]
[1617803161879,61.2954,2000.8,2000.2,6.06]
[1617803162086,63.8457,2000.8,1999.7,73.6313]
[1617803162494,63.8457,2000.8,2000.3,6.22]
[1617803162781,2.90695,2000.4,2000.1,2.90695]
[1617803162991,2.90695,2000.4,2000.3,6.22]
[1617803163400,2.90695,2000.4,2000.1,2.90695]
[1617803163581,2.90695,2000.4,2000.3,6.26]
[1617803163982,3.91675,2000.4,1998.9,2.0]
[1617803164181,3.91675,2000.4,2000.3,6.29]
[1617803164584,3.91675,2000.4,1999.8,6.28]
[1617803164782,78.9308,2000.2,1999.3,2.90695]
[1617803164999,78.9308,2000.2,1999.9,6.13]
[1617803165486,78.9308,2000.2,1999.3,2.90695]
[1617803165696,1.0007,2001.2,2000.0,6.29]
[1617803166038,13.5877,2001.1,2000.5,79.5478]
[1617803166234,13.5877,2001.1,2000.6,6.24]
[1617803166416,13.5877,2001.1,2000.7,2.0]
[1617803166687,13.5877,2001.1,2001.0,2.90695]
[1617803166891,13.5877,2001.1,2001.0,5.00405]